[Event "Late-Titled-Tuesday-Blitz-October-17-2023"]
[Site "Chess.com"]
[Date "2023.10.17"]
[Round "9"]
[White "BardArtem"]
[Black "borocotoajua"]
[Result "1-0"]
[WhiteElo "2764"]
[BlackElo "2573"]
[TimeControl "180+1"]
[EndTime "15:39:29 PDT"]
[Termination "BardArtem won by resignation"]

1. e4 {[%clk 0:02:57.5]} 1... c6 {[%clk 0:02:59.5]} 2. d4 {[%clk 0:02:45]} 2...
d5 {[%clk 0:02:59.3]} 3. exd5 {[%clk 0:02:45.9]} 3... cxd5 {[%clk 0:02:59.4]} 4.
Bd3 {[%clk 0:02:46.6]} 4... Nc6 {[%clk 0:02:58.7]} 5. c3 {[%clk 0:02:47.2]} 5...
Nf6 {[%clk 0:02:58.9]} 6. h3 {[%clk 0:02:47.2]} 6... e5 {[%clk 0:02:58.2]} 7.
dxe5 {[%clk 0:02:48.1]} 7... Nxe5 {[%clk 0:02:59.1]} 8. Nf3 {[%clk 0:02:47.1]}
8... Nxd3+ {[%clk 0:02:58.4]} 9. Qxd3 {[%clk 0:02:48]} 9... Bd6 {[%clk
0:02:56.6]} 10. O-O {[%clk 0:02:47.8]} 10... O-O {[%clk 0:02:56.5]} 11. Bg5
{[%clk 0:02:47.8]} 11... h6 {[%clk 0:02:54.9]} 12. Bh4 {[%clk 0:02:47.5]} 12...
Re8 {[%clk 0:02:51.1]} 13. Nbd2 {[%clk 0:02:45.5]} 13... Be6 {[%clk 0:02:18.8]}
14. Rfe1 {[%clk 0:02:40.1]} 14... Rc8 {[%clk 0:02:12.2]} 15. Nd4 {[%clk
0:02:36.4]} 15... Bc5 {[%clk 0:01:31.9]} 16. N2f3 {[%clk 0:02:27.2]} 16... Bd7
{[%clk 0:00:55.7]} 17. Rxe8+ {[%clk 0:02:22.5]} 17... Bxe8 {[%clk 0:00:56.6]}
18. Re1 {[%clk 0:02:22.5]} 18... g5 {[%clk 0:00:54.8]} 19. Nxg5 {[%clk
0:02:15.7]} 19... hxg5 {[%clk 0:00:53.8]} 20. Bxg5 {[%clk 0:02:16.6]} 20... Bd7
{[%clk 0:00:42.1]} 21. Qg3 {[%clk 0:02:12.6]} 21... Nh5 {[%clk 0:00:16.7]} 22.
Qh4 {[%clk 0:02:07]} 22... Qb6 {[%clk 0:00:17.3]} 23. Qxh5 {[%clk 0:02:02.6]}
23... Bxd4 {[%clk 0:00:17.4]} 24. cxd4 {[%clk 0:02:01.6]} 24... Qxd4 {[%clk
0:00:18.3]} 25. Re7 {[%clk 0:01:37.6]} 25... Be6 {[%clk 0:00:08.6]} 26. Rxe6
{[%clk 0:01:31.3]} 26... fxe6 {[%clk 0:00:09.2]} 27. Qg6+ {[%clk 0:01:31.5]}
27... Kf8 {[%clk 0:00:09.5]} 28. Qxe6 {[%clk 0:01:25.9]} 28... Rc6 {[%clk
0:00:09.8]} 29. Bh6+ {[%clk 0:01:25.4]} 1-0

[Event "Late-Titled-Tuesday-Blitz-October-17-2023"]
[Site "Chess.com"]
[Date "2023.10.17"]
[Round "9"]
[White "NotFischer"]
[Black "UK_23"]
[Result "0-1"]
[WhiteElo "2254"]
[BlackElo "2395"]
[TimeControl "180+1"]
[EndTime "15:39:33 PDT"]
[Termination "UK_23 won by resignation"]

1. b4 {[%clk 0:03:00.9]} 1... e5 {[%clk 0:02:59.5]} 2. Bb2 {[%clk 0:03:00.8]}
2... Bxb4 {[%clk 0:03:00.1]} 3. Bxe5 {[%clk 0:03:00.9]} 3... Nf6 {[%clk
0:03:00.8]} 4. e3 {[%clk 0:03:01]} 4... d5 {[%clk 0:03:01.1]} 5. c3 {[%clk
0:02:58.4]} 5... Be7 {[%clk 0:02:59.9]} 6. Bxf6 {[%clk 0:02:58.3]} 6... Bxf6
{[%clk 0:02:59.8]} 7. d4 {[%clk 0:02:59.2]} 7... O-O {[%clk 0:02:58.6]} 8. Bd3
{[%clk 0:02:58.3]} 8... c5 {[%clk 0:02:58.5]} 9. Ne2 {[%clk 0:02:57.1]} 9... Nc6
{[%clk 0:02:57]} 10. O-O {[%clk 0:02:55.8]} 10... Bg4 {[%clk 0:02:56.9]} 11. Qc2
{[%clk 0:02:46.3]} 11... Bxe2 {[%clk 0:02:28.5]} 12. Bxe2 {[%clk 0:02:26.7]}
12... Rc8 {[%clk 0:02:26]} 13. Qa4 {[%clk 0:02:16.9]} 13... a6 {[%clk
0:01:44.7]} 14. Na3 {[%clk 0:01:51.9]} 14... Re8 {[%clk 0:01:33.1]} 15. Bf3
{[%clk 0:01:46.3]} 15... Qd6 {[%clk 0:01:04.4]} 16. dxc5 {[%clk 0:01:33.9]}
16... Qxc5 {[%clk 0:01:03.9]} 17. Rfd1 {[%clk 0:01:26.4]} 17... b5 {[%clk
0:00:54.6]} 18. Qb3 {[%clk 0:01:22]} 18... Qxc3 {[%clk 0:00:49.2]} 19. Bxd5
{[%clk 0:01:10.7]} 19... Qxb3 {[%clk 0:00:47.7]} 20. axb3 {[%clk 0:01:05]} 20...
Bxa1 {[%clk 0:00:47.8]} 21. Rxa1 {[%clk 0:01:05.7]} 21... Nb4 {[%clk 0:00:47.4]}
22. Bf3 {[%clk 0:01:01.5]} 22... Red8 {[%clk 0:00:45.8]} 23. h3 {[%clk 0:01:01]}
23... g6 {[%clk 0:00:45.9]} 24. g4 {[%clk 0:00:54.4]} 24... Rd2 {[%clk
0:00:45.4]} 25. Nb1 {[%clk 0:00:50.3]} 25... Rc1+ {[%clk 0:00:43.8]} 26. Kg2
{[%clk 0:00:48.5]} 26... Rb2 {[%clk 0:00:44.1]} 0-1

[Event "Late-Titled-Tuesday-Blitz-October-17-2023"]
[Site "Chess.com"]
[Date "2023.10.17"]
[Round "9"]
[White "AlexNovitz"]
[Black "YouShallNotPass001"]
[Result "0-1"]
[WhiteElo "2234"]
[BlackElo "2407"]
[TimeControl "180+1"]
[EndTime "15:39:39 PDT"]
[Termination "YouShallNotPass001 won by resignation"]

1. e4 {[%clk 0:03:00.1]} 1... c5 {[%clk 0:03:00.3]} 2. Nf3 {[%clk 0:02:53.2]}
2... Nc6 {[%clk 0:02:59.2]} 3. d4 {[%clk 0:02:50.8]} 3... cxd4 {[%clk
0:03:00.1]} 4. Nxd4 {[%clk 0:02:50.3]} 4... g6 {[%clk 0:03:00.8]} 5. c4 {[%clk
0:02:49.2]} 5... Bg7 {[%clk 0:03:00.8]} 6. Be3 {[%clk 0:02:49.4]} 6... Nf6
{[%clk 0:02:57.3]} 7. Nc3 {[%clk 0:02:49.8]} 7... Ng4 {[%clk 0:02:55.9]} 8. Nxc6
{[%clk 0:02:42.1]} 8... Nxe3 {[%clk 0:02:52.2]} 9. Nxd8 {[%clk 0:02:41.6]} 9...
Nxd1 {[%clk 0:02:51.2]} 10. Nxd1 {[%clk 0:02:29.6]} 10... Kxd8 {[%clk
0:02:49.3]} 11. Rc1 {[%clk 0:02:20.7]} 11... b6 {[%clk 0:02:45.6]} 12. Bd3
{[%clk 0:02:19.3]} 12... Bb7 {[%clk 0:02:45.9]} 13. O-O {[%clk 0:02:19]} 13...
Rc8 {[%clk 0:02:42.8]} 14. b3 {[%clk 0:02:17.8]} 14... e6 {[%clk 0:02:41.4]} 15.
Ne3 {[%clk 0:02:14.9]} 15... Ke7 {[%clk 0:02:41.6]} 16. f4 {[%clk 0:02:06.8]}
16... Bd4 {[%clk 0:02:37.6]} 17. Rce1 {[%clk 0:02:00.4]} 17... b5 {[%clk
0:02:25.4]} 18. h3 {[%clk 0:01:53.2]} 18... b4 {[%clk 0:02:24.2]} 19. Kh2 {[%clk
0:01:51.3]} 19... a5 {[%clk 0:02:23.5]} 20. Nc2 {[%clk 0:01:33.5]} 20... Bc3
{[%clk 0:02:22.9]} 21. Re2 {[%clk 0:01:32.9]} 21... a4 {[%clk 0:02:18.9]} 22. f5
{[%clk 0:01:20.1]} 22... axb3 {[%clk 0:02:15.9]} 23. axb3 {[%clk 0:01:21]} 23...
f6 {[%clk 0:02:07.1]} 24. fxg6 {[%clk 0:01:18.6]} 24... hxg6 {[%clk 0:02:06.2]}
25. Ne3 {[%clk 0:01:09.5]} 25... g5 {[%clk 0:02:02]} 26. Ng4 {[%clk 0:01:02.4]}
26... Ra8 {[%clk 0:01:54.7]} 27. Rd1 {[%clk 0:00:47.1]} 27... Ra3 {[%clk
0:01:50]} 28. Bc2 {[%clk 0:00:47.6]} 28... Ra2 {[%clk 0:01:42.3]} 29. e5 {[%clk
0:00:21.6]} 29... f5 {[%clk 0:01:33.3]} 30. Nf6 {[%clk 0:00:20.5]} 30... Bc6
{[%clk 0:01:31.3]} 31. Bd3 {[%clk 0:00:02.3]} 31... Rxe2 {[%clk 0:01:28.9]} 32.
Bxe2 {[%clk 0:00:03.2]} 32... Bxe5+ {[%clk 0:01:29.1]} 0-1

[Event "Late-Titled-Tuesday-Blitz-October-17-2023"]
[Site "Chess.com"]
[Date "2023.10.17"]
[Round "9"]
[White "Eloist"]
[Black "DryCounty"]
[Result "0-1"]
[WhiteElo "2458"]
[BlackElo "2674"]
[TimeControl "180+1"]
[EndTime "15:39:52 PDT"]
[Termination "DryCounty won on time"]

1. e4 {[%clk 0:03:00.9]} 1... c5 {[%clk 0:02:57.3]} 2. Nf3 {[%clk 0:03:00.7]}
2... d6 {[%clk 0:02:57.6]} 3. Bb5+ {[%clk 0:03:00.5]} 3... Bd7 {[%clk
0:02:57.2]} 4. Bxd7+ {[%clk 0:03:00.2]} 4... Nxd7 {[%clk 0:02:58.1]} 5. O-O
{[%clk 0:02:59.4]} 5... Ngf6 {[%clk 0:02:58.1]} 6. Qe2 {[%clk 0:02:59.2]} 6...
e6 {[%clk 0:02:57.8]} 7. d4 {[%clk 0:02:58]} 7... cxd4 {[%clk 0:02:57.1]} 8.
Nxd4 {[%clk 0:02:57.9]} 8... Be7 {[%clk 0:02:57.6]} 9. c4 {[%clk 0:02:57.5]}
9... O-O {[%clk 0:02:57.8]} 10. Nc3 {[%clk 0:02:57.5]} 10... a6 {[%clk
0:02:58.3]} 11. Be3 {[%clk 0:02:54.5]} 11... Rc8 {[%clk 0:02:53.9]} 12. Rac1
{[%clk 0:02:39.6]} 12... Qa5 {[%clk 0:02:49.2]} 13. f4 {[%clk 0:02:33]} 13...
Qh5 {[%clk 0:02:44.8]} 14. Qxh5 {[%clk 0:02:31.9]} 14... Nxh5 {[%clk 0:02:44.2]}
15. b3 {[%clk 0:02:27.4]} 15... Nc5 {[%clk 0:02:37.9]} 16. Rcd1 {[%clk
0:02:12.7]} 16... Nf6 {[%clk 0:02:36.7]} 17. e5 {[%clk 0:02:00.5]} 17... Ng4
{[%clk 0:02:27.9]} 18. exd6 {[%clk 0:01:17.6]} 18... Nxe3 {[%clk 0:02:26]} 19.
dxe7 {[%clk 0:01:17.2]} 19... Rfe8 {[%clk 0:02:26]} 20. b4 {[%clk 0:01:11]}
20... Nxd1 {[%clk 0:02:25.1]} 21. Rxd1 {[%clk 0:01:08.8]} 21... Nd7 {[%clk
0:02:23.3]} 22. Nxe6 {[%clk 0:00:57.6]} 22... Rxe7 {[%clk 0:02:20.8]} 23. Nd4
{[%clk 0:00:36.7]} 23... Nf6 {[%clk 0:02:13.8]} 24. Nf5 {[%clk 0:00:25.3]} 24...
Re6 {[%clk 0:02:07.7]} 25. c5 {[%clk 0:00:20.4]} 25... g6 {[%clk 0:02:00]} 26.
Nd6 {[%clk 0:00:19.1]} 26... Rd8 {[%clk 0:02:00]} 27. Rb1 {[%clk 0:00:17.8]}
27... b6 {[%clk 0:01:56.3]} 28. h3 {[%clk 0:00:14.3]} 28... bxc5 {[%clk
0:01:47.1]} 29. bxc5 {[%clk 0:00:14.1]} 29... Nd7 {[%clk 0:01:47.6]} 30. Nce4
{[%clk 0:00:12]} 30... Nxc5 {[%clk 0:01:46.9]} 31. Nxc5 {[%clk 0:00:09.7]} 31...
Rexd6 {[%clk 0:01:47.1]} 32. Kh2 {[%clk 0:00:09.1]} 32... Re8 {[%clk 0:01:44.7]}
33. Rb7 {[%clk 0:00:07.3]} 33... Kg7 {[%clk 0:01:41.7]} 34. Ra7 {[%clk
0:00:06.9]} 34... Rc6 {[%clk 0:01:40.7]} 35. Nxa6 {[%clk 0:00:06.7]} 35... Re2
{[%clk 0:01:40.2]} 36. Nc7 {[%clk 0:00:04.4]} 36... Rcc2 {[%clk 0:01:37]} 37. a4
{[%clk 0:00:02.3]} 37... Rxg2+ {[%clk 0:01:36.9]} 38. Kh1 {[%clk 0:00:02.7]}
38... Rh2+ {[%clk 0:01:37.1]} 39. Kg1 {[%clk 0:00:02.5]} 39... Rcg2+ {[%clk
0:01:37]} 40. Kf1 {[%clk 0:00:02.5]} 40... Ra2 {[%clk 0:01:35]} 41. Ne8+ {[%clk
0:00:01.3]} 41... Kf8 {[%clk 0:01:33.5]} 0-1

[Event "Late-Titled-Tuesday-Blitz-October-17-2023"]
[Site "Chess.com"]
[Date "2023.10.17"]
[Round "9"]
[White "K_A_S_T_O_R"]
[Black "Hasangatin_Ramil"]
[Result "1-0"]
[WhiteElo "2872"]
[BlackElo "2718"]
[TimeControl "180+1"]
[EndTime "15:40:11 PDT"]
[Termination "K_A_S_T_O_R won by resignation"]

1. e4 {[%clk 0:03:00.9]} 1... d5 {[%clk 0:03:00]} 2. exd5 {[%clk 0:03:00.7]}
2... Qxd5 {[%clk 0:03:00.9]} 3. Nc3 {[%clk 0:03:01.1]} 3... Qd6 {[%clk
0:03:00.2]} 4. g3 {[%clk 0:03:00.1]} 4... Nf6 {[%clk 0:03:00.5]} 5. Bg2 {[%clk
0:03:00.6]} 5... c6 {[%clk 0:03:01.1]} 6. h3 {[%clk 0:03:00.7]} 6... g6 {[%clk
0:02:56.9]} 7. Nf3 {[%clk 0:02:59.9]} 7... Bg7 {[%clk 0:02:57.1]} 8. O-O {[%clk
0:03:00.5]} 8... O-O {[%clk 0:02:57.2]} 9. Re1 {[%clk 0:03:00.6]} 9... c5 {[%clk
0:02:55.3]} 10. d3 {[%clk 0:02:58.8]} 10... Nc6 {[%clk 0:02:54.7]} 11. Bf4
{[%clk 0:02:55.5]} 11... Qd8 {[%clk 0:02:53.6]} 12. Ne5 {[%clk 0:02:55.6]} 12...
Nxe5 {[%clk 0:02:36]} 13. Bxe5 {[%clk 0:02:56.5]} 13... Nd7 {[%clk 0:02:29.7]}
14. Bxg7 {[%clk 0:02:53.7]} 14... Kxg7 {[%clk 0:02:30.6]} 15. d4 {[%clk
0:02:46.9]} 15... e6 {[%clk 0:02:24.1]} 16. Ne4 {[%clk 0:02:42.3]} 16... c4
{[%clk 0:02:07.1]} 17. d5 {[%clk 0:02:15.5]} 17... e5 {[%clk 0:01:41.3]} 18. b3
{[%clk 0:02:00.4]} 18... Nb6 {[%clk 0:01:29.6]} 19. d6 {[%clk 0:01:51.1]} 19...
Rb8 {[%clk 0:01:02.9]} 20. Nc5 {[%clk 0:01:42.5]} 20... Re8 {[%clk 0:00:51.2]}
21. Qd2 {[%clk 0:01:30]} 21... cxb3 {[%clk 0:00:47.2]} 22. axb3 {[%clk
0:01:29.3]} 22... a6 {[%clk 0:00:43.6]} 23. Rad1 {[%clk 0:01:22.5]} 23... Nd7
{[%clk 0:00:43.6]} 24. Ne4 {[%clk 0:01:13]} 24... b6 {[%clk 0:00:43.4]} 25. c4
{[%clk 0:01:12.1]} 25... Bb7 {[%clk 0:00:43.2]} 26. Nc3 {[%clk 0:01:09.6]} 26...
Bxg2 {[%clk 0:00:40.2]} 27. Kxg2 {[%clk 0:01:10]} 27... a5 {[%clk 0:00:39.8]}
28. Nb5 {[%clk 0:01:08.6]} 28... Re6 {[%clk 0:00:34.3]} 29. Nc7 {[%clk
0:01:05.6]} 29... Rf6 {[%clk 0:00:34.5]} 30. Qd5 {[%clk 0:01:04.7]} 30... Qc8
{[%clk 0:00:25.4]} 31. Kg1 {[%clk 0:00:56.5]} 31... Qb7 {[%clk 0:00:25.4]} 32.
Ne8+ {[%clk 0:00:54.3]} 32... Kf8 {[%clk 0:00:23.3]} 33. Nxf6 {[%clk 0:00:53.4]}
33... Nxf6 {[%clk 0:00:23.9]} 34. Qxe5 {[%clk 0:00:52.2]} 1-0

[Event "Late-Titled-Tuesday-Blitz-October-17-2023"]
[Site "Chess.com"]
[Date "2023.10.17"]
[Round "9"]
[White "cassoulet"]
[Black "Alimpic"]
[Result "1-0"]
[WhiteElo "2789"]
[BlackElo "2528"]
[TimeControl "180+1"]
[EndTime "15:40:11 PDT"]
[Termination "cassoulet won by resignation"]

1. d4 {[%clk 0:03:00.9]} 1... g6 {[%clk 0:02:59.8]} 2. e4 {[%clk 0:03:00.4]}
2... c6 {[%clk 0:02:59.2]} 3. Nc3 {[%clk 0:03:00.5]} 3... d5 {[%clk 0:02:59.3]}
4. Nf3 {[%clk 0:02:59.6]} 4... dxe4 {[%clk 0:02:58.8]} 5. Nxe4 {[%clk
0:03:00.5]} 5... Nf6 {[%clk 0:02:59.4]} 6. Nxf6+ {[%clk 0:03:00.5]} 6... exf6
{[%clk 0:03:00.3]} 7. Bd3 {[%clk 0:02:59.3]} 7... Bg7 {[%clk 0:02:58.9]} 8. O-O
{[%clk 0:02:57.6]} 8... O-O {[%clk 0:02:58.9]} 9. h3 {[%clk 0:02:57.5]} 9... Re8
{[%clk 0:02:49.7]} 10. Bf4 {[%clk 0:02:57.2]} 10... Nd7 {[%clk 0:02:44.6]} 11.
Qd2 {[%clk 0:02:56.8]} 11... a5 {[%clk 0:02:43]} 12. Rfe1 {[%clk 0:02:55.4]}
12... Rxe1+ {[%clk 0:02:42.2]} 13. Rxe1 {[%clk 0:02:54.5]} 13... Nb6 {[%clk
0:02:40.2]} 14. c4 {[%clk 0:02:42.3]} 14... Be6 {[%clk 0:02:37.3]} 15. b3 {[%clk
0:02:42.1]} 15... a4 {[%clk 0:02:31.9]} 16. Qb4 {[%clk 0:02:33.3]} 16... Bf8
{[%clk 0:02:19.3]} 17. Qc3 {[%clk 0:02:27]} 17... axb3 {[%clk 0:02:13.4]} 18.
axb3 {[%clk 0:02:27.9]} 18... Nd7 {[%clk 0:01:46.1]} 19. Bg3 {[%clk 0:02:08.7]}
19... Qa5 {[%clk 0:01:41.4]} 20. Qc1 {[%clk 0:01:47.3]} 20... Qa3 {[%clk
0:01:29.3]} 21. Qd1 {[%clk 0:01:46]} 21... Qb2 {[%clk 0:01:20]} 22. Bf1 {[%clk
0:01:34]} 22... Ra3 {[%clk 0:01:08.5]} 23. d5 {[%clk 0:01:33]} 23... cxd5 {[%clk
0:01:09.4]} 24. cxd5 {[%clk 0:01:33.8]} 24... Bf5 {[%clk 0:01:08.9]} 25. Nd4
{[%clk 0:01:28.1]} 25... Bc5 {[%clk 0:00:20.8]} 26. Re8+ {[%clk 0:01:25.5]}
26... Nf8 {[%clk 0:00:20.9]} 27. Nxf5 {[%clk 0:01:22.9]} 27... gxf5 {[%clk
0:00:21.8]} 28. d6 {[%clk 0:01:16]} 28... Ra1 {[%clk 0:00:16.4]} 29. Qd3 {[%clk
0:01:07]} 29... Qc1 {[%clk 0:00:08.2]} 30. d7 {[%clk 0:01:02.6]} 30... Bb6
{[%clk 0:00:06.5]} 31. Bd6 {[%clk 0:01:00.4]} 31... Kg7 {[%clk 0:00:01.4]} 1-0

[Event "Late-Titled-Tuesday-Blitz-October-17-2023"]
[Site "Chess.com"]
[Date "2023.10.17"]
[Round "9"]
[White "Lion_DL"]
[Black "tylityli"]
[Result "1-0"]
[WhiteElo "2445"]
[BlackElo "2331"]
[TimeControl "180+1"]
[EndTime "15:40:15 PDT"]
[Termination "Lion_DL won on time"]

1. e4 {[%clk 0:02:58.4]} 1... e5 {[%clk 0:02:52.7]} 2. f4 {[%clk 0:02:57.1]}
2... d5 {[%clk 0:02:52.4]} 3. exd5 {[%clk 0:02:56.6]} 3... exf4 {[%clk
0:02:52.7]} 4. Nf3 {[%clk 0:02:56.4]} 4... Nf6 {[%clk 0:02:52.9]} 5. Bc4 {[%clk
0:02:47.7]} 5... Nxd5 {[%clk 0:02:51.3]} 6. O-O {[%clk 0:02:27.9]} 6... Be7
{[%clk 0:02:47.5]} 7. Bxd5 {[%clk 0:02:22.5]} 7... Qxd5 {[%clk 0:02:46.8]} 8.
Nc3 {[%clk 0:02:22.8]} 8... Qd8 {[%clk 0:02:37.6]} 9. d4 {[%clk 0:02:22.7]} 9...
g5 {[%clk 0:02:36.8]} 10. Re1 {[%clk 0:02:13.4]} 10... O-O {[%clk 0:02:29.7]}
11. Qd3 {[%clk 0:02:02.8]} 11... Nc6 {[%clk 0:02:22]} 12. a3 {[%clk 0:02:01.4]}
12... Bg4 {[%clk 0:02:11.2]} 13. d5 {[%clk 0:01:49.1]} 13... Nb8 {[%clk
0:01:35.8]} 14. Ne5 {[%clk 0:01:31]} 14... Bh5 {[%clk 0:01:34.3]} 15. Bd2 {[%clk
0:01:31.3]} 15... Nd7 {[%clk 0:01:33.1]} 16. Qh3 {[%clk 0:01:19]} 16... Nf6
{[%clk 0:00:39.9]} 17. g3 {[%clk 0:01:08.1]} 17... fxg3 {[%clk 0:00:18]} 18.
hxg3 {[%clk 0:00:50.9]} 18... Bg6 {[%clk 0:00:11.9]} 19. Bxg5 {[%clk 0:00:42.8]}
19... Nxd5 {[%clk 0:00:08.4]} 20. Bxe7 {[%clk 0:00:39.7]} 20... Nxe7 {[%clk
0:00:08.7]} 21. Rad1 {[%clk 0:00:31.8]} 21... Qc8 {[%clk 0:00:07.1]} 22. Nd7
{[%clk 0:00:30.6]} 1-0

[Event "Late-Titled-Tuesday-Blitz-October-17-2023"]
[Site "Chess.com"]
[Date "2023.10.17"]
[Round "9"]
[White "leoduarte"]
[Black "talaicito"]
[Result "1-0"]
[WhiteElo "2392"]
[BlackElo "2230"]
[TimeControl "180+1"]
[EndTime "15:40:18 PDT"]
[Termination "leoduarte won by checkmate"]

1. d4 {[%clk 0:03:00.9]} 1... e6 {[%clk 0:01:13.7]} 2. c4 {[%clk 0:03:01.8]}
2... f5 {[%clk 0:01:10.5]} 3. Nc3 {[%clk 0:02:59.8]} 3... Nf6 {[%clk 0:01:10.6]}
4. a3 {[%clk 0:03:00.3]} 4... b6 {[%clk 0:01:09.1]} 5. Bf4 {[%clk 0:02:59.9]}
5... Bb7 {[%clk 0:01:09.4]} 6. e3 {[%clk 0:03:00]} 6... g6 {[%clk 0:01:05.4]} 7.
Nf3 {[%clk 0:02:56.2]} 7... Bg7 {[%clk 0:01:05.9]} 8. h4 {[%clk 0:02:54.4]} 8...
h6 {[%clk 0:00:54.1]} 9. Be2 {[%clk 0:02:50.8]} 9... Nc6 {[%clk 0:00:52.6]} 10.
Qd2 {[%clk 0:02:43.9]} 10... Ne7 {[%clk 0:00:49.3]} 11. O-O-O {[%clk 0:02:24.8]}
11... Ne4 {[%clk 0:00:43.9]} 12. Nxe4 {[%clk 0:02:23.5]} 12... Bxe4 {[%clk
0:00:44.8]} 13. Ne5 {[%clk 0:02:21.9]} 13... d6 {[%clk 0:00:41.3]} 14. Nf3
{[%clk 0:02:18.4]} 14... O-O {[%clk 0:00:30.3]} 15. h5 {[%clk 0:02:10.1]} 15...
g5 {[%clk 0:00:29.2]} 16. Bxg5 {[%clk 0:02:10.4]} 16... hxg5 {[%clk 0:00:24.8]}
17. Nxg5 {[%clk 0:02:10.7]} 17... Qd7 {[%clk 0:00:19.7]} 18. f3 {[%clk
0:02:08.4]} 18... Bb7 {[%clk 0:00:14.2]} 19. e4 {[%clk 0:01:52.5]} 19... Bh6
{[%clk 0:00:14.1]} 20. Kb1 {[%clk 0:01:45.9]} 20... fxe4 {[%clk 0:00:14]} 21.
fxe4 {[%clk 0:01:45.4]} 21... Bxe4+ {[%clk 0:00:14.3]} 22. Ka1 {[%clk
0:01:44.4]} 22... Nf5 {[%clk 0:00:13.4]} 23. Qf4 {[%clk 0:01:36.3]} 23... d5
{[%clk 0:00:12.4]} 24. Qg4 {[%clk 0:01:34.1]} 24... Kh8 {[%clk 0:00:11.8]} 25.
Nxe4 {[%clk 0:01:30]} 25... Ne3 {[%clk 0:00:10]} 26. Qg6 {[%clk 0:01:27.9]}
26... Qg7 {[%clk 0:00:10.1]} 27. Qxg7+ {[%clk 0:01:23.7]} 27... Kxg7 {[%clk
0:00:11]} 28. Nc3 {[%clk 0:01:15.9]} 28... Nxd1 {[%clk 0:00:10.3]} 29. Nxd1
{[%clk 0:01:16.5]} 29... dxc4 {[%clk 0:00:10]} 30. Bxc4 {[%clk 0:01:16]} 30...
Rf4 {[%clk 0:00:09.9]} 31. Bxe6 {[%clk 0:01:13]} 31... Rxd4 {[%clk 0:00:09.9]}
32. Nc3 {[%clk 0:01:13.2]} 32... Re8 {[%clk 0:00:08.2]} 33. Bf5 {[%clk
0:01:11.9]} 33... Re3 {[%clk 0:00:06]} 34. g4 {[%clk 0:01:11.5]} 34... Rd2
{[%clk 0:00:05.8]} 35. Rg1 {[%clk 0:01:06.6]} 35... Bg5 {[%clk 0:00:05.9]} 36.
Bg6 {[%clk 0:01:03.3]} 36... Kh6 {[%clk 0:00:05.6]} 37. Rf1 {[%clk 0:01:03.4]}
37... Rg3 {[%clk 0:00:04.3]} 38. Rf7 {[%clk 0:01:03.2]} 38... Rxg4 {[%clk
0:00:04.3]} 39. Rh7# {[%clk 0:01:03.6]} 1-0

[Event "Late-Titled-Tuesday-Blitz-October-17-2023"]
[Site "Chess.com"]
[Date "2023.10.17"]
[Round "9"]
[White "maurovargas01"]
[Black "protectiago"]
[Result "0-1"]
[WhiteElo "1901"]
[BlackElo "2080"]
[TimeControl "180+1"]
[EndTime "15:40:22 PDT"]
[Termination "protectiago won by checkmate"]

1. e4 {[%clk 0:02:59.7]} 1... e5 {[%clk 0:02:59.1]} 2. Nf3 {[%clk 0:02:59.3]}
2... Nc6 {[%clk 0:02:59.3]} 3. d4 {[%clk 0:03:00.2]} 3... exd4 {[%clk
0:02:59.3]} 4. Bc4 {[%clk 0:03:00.7]} 4... Bc5 {[%clk 0:02:59.3]} 5. O-O {[%clk
0:03:00]} 5... Nf6 {[%clk 0:02:59.3]} 6. e5 {[%clk 0:02:59.8]} 6... d5 {[%clk
0:02:59.3]} 7. exf6 {[%clk 0:02:54.1]} 7... dxc4 {[%clk 0:02:59.4]} 8. Re1+
{[%clk 0:02:51.3]} 8... Be6 {[%clk 0:02:59.1]} 9. Ng5 {[%clk 0:02:47.7]} 9...
gxf6 {[%clk 0:02:54.4]} 10. Nxe6 {[%clk 0:02:43]} 10... fxe6 {[%clk 0:02:54.3]}
11. Qh5+ {[%clk 0:02:38.8]} 11... Kd7 {[%clk 0:02:44]} 12. Qxc5 {[%clk
0:02:36.4]} 12... Qe7 {[%clk 0:02:33.6]} 13. Qxc4 {[%clk 0:02:28.8]} 13... Rag8
{[%clk 0:02:31.8]} 14. Bf4 {[%clk 0:02:18.7]} 14... e5 {[%clk 0:02:28.4]} 15.
Qd5+ {[%clk 0:02:08.9]} 15... Kc8 {[%clk 0:02:26.4]} 16. Bg3 {[%clk 0:02:06.9]}
16... h5 {[%clk 0:02:25.1]} 17. f4 {[%clk 0:02:06]} 17... h4 {[%clk 0:02:24.4]}
18. Bf2 {[%clk 0:02:03.9]} 18... Qg7 {[%clk 0:02:21.6]} 19. fxe5 {[%clk
0:01:57]} 19... fxe5 {[%clk 0:02:12.8]} 20. Nd2 {[%clk 0:01:51.3]} 20... Rh6
{[%clk 0:01:57]} 21. Nc4 {[%clk 0:01:47.3]} 21... Rg6 {[%clk 0:01:52.7]} 22. g3
{[%clk 0:01:33.5]} 22... hxg3 {[%clk 0:01:52.5]} 23. Bxg3 {[%clk 0:01:30.5]}
23... Rxg3+ {[%clk 0:01:49.2]} 24. hxg3 {[%clk 0:01:25.4]} 24... Qxg3+ {[%clk
0:01:49.2]} 25. Kf1 {[%clk 0:01:25.3]} 25... Nb4 {[%clk 0:00:17.6]} 26. Qe6+
{[%clk 0:00:32.9]} 26... Kb8 {[%clk 0:00:17.7]} 27. Qxe5 {[%clk 0:00:31.2]}
27... Qg2# {[%clk 0:00:16.1]} 0-1